Cogmind - Beta 17.1 @@@ ROGUE MODE // 2026.09.09 @ 16:00:15 Player: EN-G1N Result: Self-destructed Performance ------------- Evolutions (2) 1000 Regions Visited (4) 800 Robots Destroyed (18) 90 Value Destroyed (459) 459 Prototype IDs (2) 40 Alien Tech Used (0) 0 Bonus (187) 187 TOTAL SCORE: 2576 Bonus ------- Follower Combat Kills 187 Cogmind --------- Core Integrity 366/550 Matter 278/300 Energy 296/300 System Corruption 0% Temperature Cool (9) Movement Walking (130) Location -8/Materials Parts ------- > --- POWER (1) -------- (None) > --- PROPULSION (2) --- Titanium Leg Titanium Leg > --- UTILITY (6) ------ Small Storage Unit Large Battery Signal Interpreter Target Analyzer > --- WEAPON (2) ------- Advanced Beam Rifle > --- INVENTORY (8) ---- Light Nuclear Core Improved Heat Sink Cooling System Makeshift Terrain Scan Processor Shield Generator Mining Laser Peak State ------------ > --- POWER ------------ Ion Engine > --- PROPULSION ------- Makeshift Leg Makeshift Leg > --- UTILITY ---------- Improved Heat Sink Small Storage Unit Large Battery Trap Scanner Signal Interpreter Target Analyzer > --- WEAPON ----------- Spread Laser Advanced Beam Rifle > --- INVENTORY -------- Light Nuclear Core Titanium Leg Titanium Leg Improved Heat Sink Cooling System Makeshift Terrain Scan Processor Shield Generator Mining Laser [Rating: 29] Favorites ----------- Power Ion Engine Engine Ion Engine Propulsion Light Treads Treads Light Treads Leg Makeshift Leg Wheel Wheel Utility Small Storage Unit Device Heat Sink Storage Small Storage Unit Processor Signal Interpreter Weapon Small Laser Energy Gun Small Laser Special Weapon Mining Laser Build | -11 -10 -10 -9 -8 ------- Run | Yrd Mat Min Mat Mat Slots Evolved 4 | . . . 2 2 Power . | . . . . . Propulsion . | . . . . . Utility 4 | . . . 2 2 Weapon . | . . . . . Parts Attached 25 | 6 1 1 10 7 Power 2 | 1 . . 1 . Engine 2 | 1 . . 1 . Core . | . . . . . Reactor . | . . . . . Propulsion 7 | 2 . . 3 2 Treads 2 | 2 . . . . Leg 4 | . . . 2 2 Wheel 1 | . . . 1 . Hover . | . . . . . Flight . | . . . . . Utility 9 | 1 1 1 4 2 Device 5 | . 1 1 2 1 Storage 2 | 1 . . 1 . Processor 2 | . . . 1 1 Hackware . | . . . . . Protection . | . . . . . Artifact . | . . . . . Weapon 7 | 2 . . 2 3 Energy Gun 6 | 2 . . 1 3 Energy Cannon . | . . . . . Ballistic Gun . | . . . . . Ballistic Cannon . | . . . . . Launcher . | . . . . . Special Weapon 1 | . . . 1 . Impact Weapon . | . . . . . Slashing Weapon . | . . . . . Piercing Weapon . | . . . . . Special Melee Weapon . | . . . . . Unidentified Prototypes 2 | . . 1 . 1 Parts Lost 10 | . . . 4 6 Power 1 | . . . . 1 Propulsion 4 | . . . 2 2 Utility 3 | . . . 1 2 Weapon 2 | . . . 1 1 Highest Loss Streak 6 | . . . 4 6 To Critical Strikes . | . . . . . Average Backups 7 | 3 7 8 7 7 Power 1 | . 1 1 1 1 Propulsion 1 | 1 3 1 . 1 Utility 2 | . 1 3 2 4 Weapon 2 | . 1 3 2 1 Tool/Special . | . . . . . Unused Backups 11 | . 3 1 1 6 Power 2 | . . . 1 1 Propulsion 4 | . 3 . . 1 Utility 4 | . . 1 . 3 Weapon 1 | . . . . 1 Tool/Special . | . . . . . Average Slot Usage (%) 97 | . 97 100 96 94 Engine 12 | . 14 14 11 9 Treads 21 | . 28 28 12 . Leg 3 | . . . 6 18 Device 14 | . 11 14 18 15 Storage 14 | . 14 14 13 18 Processor 4 | . . . 10 17 Energy Gun 23 | . 28 28 15 16 Special Weapon 1 | . . . 6 . Peak Build Rating 29 | 6 8 15 20 29 Average Rating 11 | 4 7 8 16 25 On Entrance 8 | . 6 8 8 18 Avg Prop Armor Cover (%) 11 | . . . 11 . Naked Turns . | . . . . . Heaviest Build 21 | 13 14 14 18 21 Greatest Support 40 | 40 40 40 40 40 Greatest Overweight (x) 1 | . . . 1 . Average Overweight (x) . | . . . . . Largest Inventory Capacity 8 | 8 8 8 8 8 Average Capacity 7 | 6 8 8 8 8 Most Carried 8 | 6 8 8 8 8 Average Carried 7 | 3 7 7 7 7 Final Capacity 8 | 8 8 8 8 8 Final Carried 8 | 6 8 8 8 6 Class Distribution -------------------- 88% | Mutant 11% | Scavenger-Mutant Dominant Class ---------------- Mutant | -10/Materials Mutant | -10/Mines Mutant | -9/Materials Mutant | -8/Materials Resources | -11 -10 -10 -9 -8 ----------- Run | Yrd Mat Min Mat Mat Matter Collected 432 | 105 160 25 124 18 Remotely . | . . . . . Salvage Created 603 | . 201 147 255 . Parts 35 | . 15 9 11 . Haulers Intercepted 2 | . 1 . 1 . Recyclers Shooed . | . . . . . Parts Field Recycled . | . . . . . Retrieved Matter . | . . . . . Parts Self-Destructed . | . . . . . Prevented . | . . . . . Parts Restored . | . . . . . Kills | -11 -10 -10 -9 -8 ------- Run | Yrd Mat Min Mat Mat Combat Hostiles Destroyed 16 | . 4 6 6 . Guns 15 | . 4 6 5 . Cannons 1 | . . . 1 . Classes Destroyed 4 | . 2 1 1 . Hauler 2 | . 1 . 1 . Swarmer 6 | . . 4 2 . Grunt 8 | . 4 2 2 . Sentry 2 | . . . 2 . Best Kill Streak 3 | . 3 3 2 . Combat Bots Only 3 | . 3 3 2 . Max Kills in Single Turn 2 | . 2 1 1 . Gunslinging 1 | . 1 . . . Exploded . | . . . . . Melee . | . . . . . Uniques/NPCs Destroyed . | . . . . . Combat | -11 -10 -10 -9 -8 -------- Run | Yrd Mat Min Mat Mat Hostile Shots Fired 121 | . 13 41 32 35 Missed 22 | . 1 12 7 2 Hits 99 | . 12 29 25 33 Projectile 99 | . 12 29 25 33 Critical Strikes 3 | . . 1 1 1 Damage Taken 1370 | . 135 268 284 683 Core 288 | . 11 67 26 184 Absorbed by Shields . | . . . . . Core Remaining (%) 87 | 100 . 68 93 . Volleys Fired 70 | . 15 20 31 4 Largest 2 | . 2 2 2 2 Hottest 150 | . 90 90 150 126 Shots Fired 123 | . 29 40 47 7 Gun 119 | . 29 40 43 7 Cannon . | . . . . . Launcher . | . . . . . Special 4 | . . . 4 . Kinetic . | . . . . . Thermal 123 | . 29 40 47 7 Explosive . | . . . . . Electromagnetic . | . . . . . Robot Hit Streak 14 | . 8 14 10 2 Robot Miss Streak 4 | . 3 4 1 4 Penetration Max . | . . . . . Secondary Targets 4 | . 1 3 . . Max Gunslinging Chain 1 | . 1 1 . . Shots Hit Robots 78 | . 17 23 34 4 Core Hits 33 | . 11 9 12 1 Critical Kills . | . . . . . Critical Parts Destroyed . | . . . . . Critical Strikes 1 | . . . 1 . Burn 1 | . . . 1 . Melee Attacks . | . . . . . Impact . | . . . . . Slashing . | . . . . . Piercing . | . . . . . Sneak Attacks . | . . . . . Combat Hostiles . | . . . . . Follow-up Attacks . | . . . . . Damage Inflicted 1017 | . 231 281 459 46 Guns 967 | . 231 281 409 46 Cannons . | . . . . . Explosions . | . . . . . Melee . | . . . . . Ramming 2 | . . . 2 . Kinetic . | . . . . . Thermal 1015 | . 231 281 457 46 Explosive . | . . . . . Electromagnetic . | . . . . . Impact . | . . . . . Slashing . | . . . . . Piercing . | . . . . . Highest Corruption . | . . . . . Average Corruption . | . . . . . Corruption Purged . | . . . . . Corruption Blocked . | . . . . . Overload Shots . | . . . . . Overflow Damage . | . . . . . Projectiles . | . . . . . Explosions . | . . . . . Melee . | . . . . . Knockbacks . | . . . . . Impact . | . . . . . Kinetic . | . . . . . Secondary . | . . . . . Self-Inflicted Damage . | . . . . . Shots . | . . . . . Rammed . | . . . . . Targets Rammed 1 | . . . 1 . Kicked 1 | . . . 1 . Crushed . | . . . . . Highest Temperature 202 | . 202 180 19 189 Average Temperature 66 | . 69 72 11 45 Received Heat Transfer 372 | . 72 78 123 99 Siege Activations . | . . . . . Martial Activations . | . . . . . Shielding Activations . | . . . . . Robots Disrupted . | . . . . . Combat Hostiles . | . . . . . Robots Corrupted . | . . . . . Combat Hostiles . | . . . . . Parts Fried . | . . . . . Impact Corruptions . | . . . . . Robots Melted . | . . . . . Combat Hostiles . | . . . . . Parts Melted 4 | . 1 1 2 . Heat Transferred 2621 | . 607 755 1192 67 Parts Sabotaged . | . . . . . Parts Stolen . | . . . . . Parts Stripped . | . . . . . Power Chain Reactions . | . . . . . Alert | -11 -10 -10 -9 -8 ------- Run | Yrd Mat Min Mat Mat Maximum Alert Level 1 | . . . 1 . Low Security (%) 99 | 100 100 100 98 100 Level 1 . | . . . 1 . Level 2 . | . . . . . Level 3 . | . . . . . Level 4 . | . . . . . Level 5 . | . . . . . High Security . | . . . . . Max Security . | . . . . . Peak Influence 215 | . 80 70 215 66 Initial 66 | . . . 20 66 Average 37 | . 10 18 109 24 Influence Increases 791 | . 114 230 432 15 Destroy 0b10 Robot/C 500 | . 80 160 260 . Destroy 0b10 Robot/NC 10 | . 5 . 5 . Destroy Leader 104 | . 22 30 52 . Allied During Kill 34 | . . 10 24 . Successful Hack 6 | . 6 . . . Disable Machine 30 | . . . 30 . Destroy Structure 2 | . 1 . 1 . Lose Combat Pursuer 105 | . . 30 60 15 Influence Decreases 786 | . 114 178 325 169 Entered New Map 125 | . . . 32 93 Time Decay 551 | . 114 178 193 66 Lost Part 50 | . . . 40 10 Lost Ally 60 | . . . 60 . Squads Dispatched 6 | . 2 1 1 2 Investigation 1 | . . . 1 . Extermination . | . . . . . Reinforcement 4 | . 2 . . 2 Assault 1 | . . 1 . . Garrison . | . . . . . Intercept . | . . . . . Searches Triggered . | . . . . . Construction Impeded . | . . . . . Haulers Reinforced . | . . . . . Active Scanning Responses . | . . . . . Cargo Convoy Interrupts . | . . . . . Stealth | -11 -10 -10 -9 -8 --------- Run | Yrd Mat Min Mat Mat Distress Signals 3 | . . . 2 1 Communications Jammed . | . . . . . Distress Signals . | . . . . . Times Spotted 41 | . 8 10 16 7 Peak Tracking Total 6 | . 3 3 5 6 Tactical Retreats 5 | . . 1 3 1 Traps | -11 -10 -10 -9 -8 ------- Run | Yrd Mat Min Mat Mat Traps Triggered 1 | . . . 1 . Indirectly . | . . . . . Trap Hack Attempts . | . . . . . Triggered . | . . . . . Disarmed . | . . . . . Reprogrammed . | . . . . . Reused . | . . . . . Traps Extracted . | . . . . . Installed . | . . . . . Triggered . | . . . . . Machines | -11 -10 -10 -9 -8 ---------- Run | Yrd Mat Min Mat Mat Machines Disabled 2 | . . . 2 . Max in Single Turn 1 | . . . 1 . Machines Repaired . | . . . . . Machines Dismantled . | . . . . . Machines Sabotaged . | . . . . . Overloaded Fab Kills . | . . . . . Hacking | -11 -10 -10 -9 -8 --------- Run | Yrd Mat Min Mat Mat Machines Accessed 6 | . 4 . 2 . Terminals 5 | . 4 . 1 . Fabricators . | . . . . . Repair Stations . | . . . . . Recycling Units . | . . . . . Scanalyzers 1 | . . . 1 . Garrison Access . | . . . . . Total Hacks 11 | . 6 . 5 . Successful 5 | . 2 . 3 . Failed 6 | . 4 . 2 . Catastrophic . | . . . . . Database Lockouts . | . . . . . Manual 5 | . 4 . 1 . Terminals 7 | . 6 . 1 . Fabricators . | . . . . . Repair Stations . | . . . . . Recycling Units . | . . . . . Scanalyzers 4 | . . . 4 . Garrison Access . | . . . . . Terminal Hacks 1 | . 1 . . . Robot Analysis 1 | . 1 . . . Fabricator Hacks . | . . . . . Repair Station Hacks . | . . . . . Recycling Unit Hacks . | . . . . . Scanalyzer 3 | . . . 3 . Retrieve Study 3 | . . . 3 . Garrison Access Hacks . | . . . . . Unauthorized Hacks 1 | . 1 . . . Terminals 1 | . 1 . . . Botnet 1 | . 1 . . . Fabricators . | . . . . . Repair Stations . | . . . . . Recycling Units . | . . . . . Scanalyzers . | . . . . . Garrison Access . | . . . . . Data Cores Recovered . | . . . . . Used . | . . . . . Hacking Detections 4 | . 3 . 1 . Full Trace Events . | . . . . . Feedback Events . | . . . . . Feedback Blocked . | . . . . . Robot Schematics Acquired . | . . . . . Robots Built . | . . . . . Authchips . | . . . . . Time . | . . . . . Total Robot Build Rating . | . . . . . Part Schematics Acquired . | . . . . . Parts Built . | . . . . . Authchips . | . . . . . Time . | . . . . . Total Part Build Rating . | . . . . . Part Studies Acquired 3 | . . . 3 . Parts Repaired . | . . . . . Time . | . . . . . Parts Recycled . | . . . . . Recycled Matter . | . . . . . Retrieved Matter . | . . . . . Retrieved Components . | . . . . . Parts Scanalyzed . | . . . . . Part Schematics Acquired . | . . . . . Parts Damaged . | . . . . . Bothacking | -11 -10 -10 -9 -8 ------------ Run | Yrd Mat Min Mat Mat Used RIF Installer . | . . . . . Robots Hacked . | . . . . . Non-combat . | . . . . . Combat . | . . . . . Robot Hacks Applied . | . . . . . Relay Couplers Released . | . . . . . Fabnet Peak Effective % . | . . . . . Robots Rewired . | . . . . . Allies Hacked . | . . . . . Hacks Repelled . | . . . . . Allies | -11 -10 -10 -9 -8 -------- Run | Yrd Mat Min Mat Mat Total Allies 3 | . . 3 . . Largest Group 3 | . . 3 3 . Highest-Rated Group 87 | . . 87 87 . Highest-Rated Ally 31 | . . 31 31 . Total Orders . | . . . . . Ally Attacks 35 | . . 4 31 . Total Damage 501 | . . 84 417 . Kills 9 | . . 2 7 . Allies Corrupted . | . . . . . Allies Melted . | . . . . . Intel | -11 -10 -10 -9 -8 ------- Run | Yrd Mat Min Mat Mat Active Infowar (turns) 545 | . . 82 324 139 Sensors 406 | . . 82 324 . Traps 139 | . . . . 139 Robot Analysis Total 1 | . 1 . . . Derelict Logs Recovered 1 | . . 1 . . Drone Launches . | . . . . . Drone Recoveries . | . . . . . Exploration | -11 -10 -10 -9 -8 ------------- Run | Yrd Mat Min Mat Mat Turns Passed 2145 | 82 676 674 508 205 Spaces Moved 1183 | 45 384 379 247 128 Core 6 | 6 . . . . Treads 933 | 39 384 379 131 . Legs 213 | . . . 85 128 Wheels 31 | . . . 31 . Hover . | . . . . . Flight . | . . . . . Fastest Speed 50 | 50 160 160 95 130 Average Speed 154 | 145 160 160 144 139 Slowest Speed 160 | 160 160 160 160 140 Overloaded Moves . | . . . . . Propulsion Burnouts . | . . . . . Robots Hopped . | . . . . . Potential Cave-ins . | . . . . . Cave-ins Triggered . | . . . . . Exploration Rate (%) 36 | 4 60 74 33 12 Regions Visited 4 Branch Regions 1 Pre-discovered Areas . | . . . . . Known Exits Taken 1 | . . . 1 . Unknown Exits Taken 3 | 1 1 1 . . Scrap Searched . | . . . . . Spaces Dug . | . . . . . Terrain Destroyed . | . . . . . Melee . | . . . . . Projectile . | . . . . . AOE . | . . . . . Terrain Rammed . | . . . . . Walls Destroyed . | . . . . . Machines Disabled . | . . . . . Actions | -11 -10 -10 -9 -8 --------- Run | Yrd Mat Min Mat Mat Total 1376 | 62 418 406 340 150 Wait 53 | . 10 4 39 . Move 1179 | 44 383 378 246 128 Hop . | . . . . . Pick Up 30 | 12 6 1 7 4 Fast Attach 5 | . . . 1 4 Attach 15 | 6 1 . 6 2 Detach . | . . . . . Swap 9 | . . 2 6 1 Drop 14 | . 3 1 3 7 Fire 70 | . 15 20 31 4 Melee . | . . . . . Ram . | . . . . . Kick 1 | . . . 1 . Crush . | . . . . . Escape Stasis . | . . . . . Rewire . | . . . . . Trap . | . . . . . Miscellaneous . | . . . . . Route ------- -11/Scrapyard -10/Materials (discovered 3 exits: *Mat x2 / [*Min]) -10/Mines (discovered 2 exits: *Mat x2) -9/Materials (discovered 4 exits: *Mat x3 / Min) -8/Materials History --------- Turn | Location | Event 3 | -11/Scrapyard | Discovered new exit (range 15) 83 | -11/Scrapyard | Entered Materials 307 | -10/Materials | Build established: Mutant 505 | -10/Materials | Discovered new exit (range 15) 599 | -10/Materials | Discovered new exit (range 8) 692 | -10/Materials | Discovered new exit (range 3) 759 | -10/Materials | Entered Mines 809 | -10/Mines | Discovered new exit (range 6) 1102 | -10/Mines | Found a damaged Exp. Sensor Array with a note attached 1106 | -10/Mines | Found Prototype Device 1107 | -10/Mines | Identified Exp. Sensor Array 1134 | -10/Mines | Found a hidden stash of uninstalled traps 1321 | -10/Mines | Met a Derelict testing a Signal Generator 1365 | -10/Mines | Learned 4 Materials zone layouts 1420 | -10/Mines | Discovered new exit (range 7) 1433 | -10/Mines | Entered Materials 1433 | -9/Materials | Accompanied by 3 allies 1433 | -9/Materials | Evolved 2 slots: Utility x2 1434 | -9/Materials | Identified exit to Mines 1434 | -9/Materials | Identified exit to Materials 1438 | -9/Materials | Led the pair of lost Derelicts to an unsafe place 1789 | -9/Materials | Lost 4 parts (2n1u1w) 1933 | -9/Materials | Discovered exit to Materials (range 6) 1941 | -9/Materials | Entered another Materials area 1941 | -8/Materials | Evolved 2 slots: Utility x2 2146 | -8/Materials | Self-destructed Last Messages --------------- 02111_ ALERT: Hostile activity reported, dispatching reinforcements to area. 02111_ Knocked back. 02114_ Acquired 12 matter. 02117_ Penetrated by Slug. 02117_ Spread Laser destroyed. 02118_ Acquired 6 matter. 02119_ Knocked back. 02129_ K-01 Serf collects debris. 02131_ Critical hit (Burn: +37). 02134_ Penetrated by Slug. 02135_ Mak. Leg destroyed. 02137_ Penetrated by Slug. 02137_ Mak. Leg destroyed. 02137_ Penetrated by Slug. 02143_ Imp. Heat Sink destroyed. 02143_ Penetrated by Slug. 02143_ Ion Engine destroyed. 02144_ Penetrated by Slug. 02146_ Trap Scanner destroyed. Map ----- +----------------------------------------------------+ | | | | | | | | | | | | | | | | | | | | | ###########??????????????????????????????????????? | | # #??????????????????????????????????????? | | # #?????????##########???????????????????? | | # ########### #???###########?????? | | # ## # ! #???# #?????? | | #! ] ## """ # [! ##### #?????? | | # ## """ # [ # # #?????? | | ? ! ?# """ # # # #?????? | | ??? ???# # """ # # "" !!= #?????? | | #####+###### """ # """ ! + + "G ![* #?????? | | % " """ ]# """ # # "" ! = #?????? | | ###### """ # # # * #?????? | | ######????# H ########## ###########?????? | | ??????????#######+########## #??????????????? | | ??????????##### x h #??????????????? | | ????? x @ T #??????????????? | | ???????#### """ #??????????????? | | ??????????# "Y" ####### [ #??????????????? | | ??????????# #?????#######??????????????? | | ??????????# ^ ^ #??????????????????????????? | | ??????????# #??????????????????????????? | | ??????????# #??????????????????????????? | | ??????????# #??????????????????????????? | | ??????????# #??????????????????????????? | | ??????????# ! #??????????????????????????? | | ??????????# """ #??????????????????????????? | | ??????????# """ #??????????????????????????? | | ??????????# ?"" #??????????????????????????? | | ???????????? ???" ???????????????????????????? | | ?????????????? ???? ???????????????????????????? | | ???????????????????? ???????????????????????????? | | ???????????????????? ???????????????????????????? | | ?????????????????????????????????????????????????? | | ?????????????????????????????????????????????????? | | ?????????????????????????????????????????????????? | | ?????????????????????????????????????????????????? | | ?????????????????????????????????????????????????? | | ?????????????????????????????????????????????????? | | ?????????????????????????????????????????????????? | | ?????????????????????????????????????????????????? | +----------------------------------------------------+ Best States ------------- Heat Dissipation 52 Energy Generation 10 Energy Capacity 450 Matter Stores 300 Matter Capacity 300 Sight Range 16 Robot Scan Range 20 Terrain Scan Density 10 Evasion (%) 55 Target Analysis 5 Recoil Reduction 2 Item Schematics ----------------- None Robot Schematics ------------------ None Fabricated ------------ Nothing Repaired ---------- Nothing Studied --------- Med. Laser | -9/Materials | Hacked Mining Laser | -9/Materials | Hacked Sml. Laser | -9/Materials | Hacked Alien Tech Used ----------------- None Achievements -------------- None Challenges ------------ None Game ------ Seed PhasingShiftInverter Manual? 0 Play Time 00:16:40 Cumulative 66.6 hours Start 2026.09.08 @ 11:47:08 End 2026.09.09 @ 16:00:15 Sessions 3 Manual Loads 0 Difficulty Rogue Special Mode None Game No. 73 Rogue 18 Adventurer 55 Explorer 0 Win Type - Total 1 Types 1/0/0/0/0/0/0/0/0/0 Lore% 33 Gallery% 36 Achievement% 26 Wizard Run 0 Options --------- Layout 1 ASCII 0 Keyboard 0 Movement Mouse Keybinds 0 Fullscreen 2 Font 24/Smallcaps Map View 50x35 Zoom Use 0% Tactical HUD 1 Map Filters NONE Filters NONE Steam 1 RUN: ed356ae2-cb07-4a3b-8e41-520422064fa4